[Event "Djerba Festival Open-B 2025"]
[Site "Djerba"]
[Date "2025.02.18"]
[Round "3.5"]
[White "Louvrier Saint-Mary, Jean-Roger"]
[Black "Nassr, Lina"]
[Result "1/2-1/2"]
[Annotator "ChessBase"]
[ECO "A17"]
[WhiteElo "1839"]
[BlackElo "1934"]
[PlyCount "168"]
[EventDate "2025.02.15"]
[EventType "swiss"]
[EventCountry "TUN"]
[SourceTitle "playchess.com"]
[Source "ChessBase"]
[SourceQuality "1"]
[TimeControl "5400+30"]

1. c4 {[%emt 0:08:07]} e6 {[%emt 0:00:30]} 2. g3 {[%emt 0:00:17]} Nf6 {[%emt 0:00:33]} 3. Bg2 {[%emt 0:00:04]} d5 {[%emt 0:00:18]} 4. Nc3 {[%emt 0:01:07]} d4 {[%emt 0:04:47]} 5. Ne4 {[%emt 0:00:17]} Nxe4 {[%emt 0:00:30]} 6. Bxe4 {[%emt 0:00:05]} c5 {[%emt 0:01:06]} 7. Qc2 {[%emt 0:05:38]} h6 {[%emt 0:06:30]} 8. f4 {[%emt 0:04:24]} Nd7 {[%emt 0:07:26]} 9. Nf3 {[%emt 0:15:52]} Nf6 {[%emt 0:05:02]} 10. Bd3 {[%emt 0:17:35]} Be7 {[%emt 0:07:15]} 11. Ne5 {[%emt 0:02:35]} O-O {[%emt 0:01:28]} 12. b3 {[%emt 0:01:33]} Bd6 {[%emt 0:09:27]} 13. Nf3 {[%emt 0:02:30]} b6 {[%emt 0:01:56]} 14. Bb2 {[%emt 0:01:17]} Bb7 {[%emt 0:01:35]} 15. O-O-O {[%emt 0:00:14]} Ng4 {[%emt 0:08:48]} 16. Rhf1 {[%emt 0:02:10]} f5 {[%emt 0:03:59]} 17. h3 {[%emt 0:08:57]} Nf6 {[%emt 0:00:16]} 18. e3 {[%emt 0:02:52]} dxe3 {[%emt 0:13:59]} 19. dxe3 {[%emt 0:01:13]} Qc7 {[%emt 0:01:48]} 20. g4 {[%emt 0:02:40]} Ne4 {[%emt 0:07:17]} 21. gxf5 {[%emt 0:00:44]} exf5 {[%emt 0:01:14]} 22. Rg1 {[%emt 0:01:08]} Rf7 {[%emt 0:00:37]} 23. Ne5 {[%emt 0:01:15]} Bxe5 {[%emt 0:01:21]} 24. Bxe5 {[%emt 0:00:10]} Qe7 {[%emt 0:00:54]} 25. Rg6 {[%emt 0:01:19]} Kh7 {[%emt 0:03:33]} 26. Rdg1 {[%emt 0:00:49]} Rg8 {[%emt 0:01:34]} 27. Qe2 {[%emt 0:05:22]} Qh4 {[%emt 0:02:23]} 28. Bxe4 {[%emt 0:01:11]} Bxe4 {[%emt 0:00:11]} 29. R1g3 {[%emt 0:00:13]} Bb7 {[%emt 0:05:31]} 30. Qd2 {[%emt 0:01:46]} Qh5 {[%emt 0:02:08]} 31. Qc3 {[%emt 0:04:55]} Qxg6 {[%emt 0:00:32]} 32. Rxg6 {[%emt 0:00:11]} Kxg6 {[%emt 0:00:03]} 33. Qd2 {[%emt 0:01:19]} Kh7 {[%emt 0:01:28]} 34. h4 {[%emt 0:00:40]} h5 {[%emt 0:00:52]} 35. Qd6 {[%emt 0:00:19]} Be4 {[%emt 0:00:25]} 36. Qe6 {[%emt 0:02:11]} Rff8 {[%emt 0:00:30]} 37. Qd7 {[%emt 0:02:30]} a6 {[%emt 0:00:36]} 38. Qc7 {[%emt 0:00:58]} b5 {[%emt 0:00:34]} 39. cxb5 {[%emt 0:02:28]} axb5 {[%emt 0:00:02]} 40. Qd7 {[%emt 0:00:11]} c4 {[%emt 0:00:53]} 41. b4 {[%emt 0:00:36]} Kh6 {[%emt 0:00:38]} 42. Qxb5 {[%emt 0:00:32]} Ra8 {[%emt 0:00:23]} 43. a4 {[%emt 0:00:13]} g6 {[%emt 0:00:35]} 44. a5 {[%emt 0:00:49]} Rgd8 {[%emt 0:00:28]} 45. Qb6 {[%emt 0:00:26]} Rd7 {[%emt 0:00:23]} 46. Bd4 {[%emt 0:00:57]} Rb7 {[%emt 0:00:33]} 47. Qc5 {[%emt 0:00:11]} Rab8 {[%emt 0:00:35]} 48. Bc3 {[%emt 0:00:24]} Rd7 {[%emt 0:00:31]} 49. Bd4 {[%emt 0:00:47]} Rdb7 {[%emt 0:00:05]} 50. Bf6 {[%emt 0:00:21]} Kh7 {[%emt 0:00:43]} 51. a6 {[%emt 0:00:17]} Rf7 {[%emt 0:00:15]} 52. a7 {[%emt 0:00:24]} Ra8 {[%emt 0:00:16]} 53. Bd4 {[%emt 0:00:13]} Rfxa7 {[%emt 0:00:32]} 54. Qxa7+ {[%emt 0:01:31]} Rxa7 {[%emt 0:00:01]} 55. Bxa7 {[%emt 0:00:01]} c3 {[%emt 0:00:59]} 56. b5 {[%emt 0:00:41]} Kg8 {[%emt 0:00:39]} 57. Bd4 {[%emt 0:00:12]} c2 {[%emt 0:00:06]} 58. Bb2 {[%emt 0:00:13]} Kf7 {[%emt 0:00:12]} 59. Kd2 {[%emt 0:00:05]} Ke6 {[%emt 0:00:59]} 60. Kc3 {[%emt 0:00:22]} Kd6 {[%emt 0:01:03]} 61. Ba3+ {[%emt 0:00:17]} Kc7 {[%emt 0:00:20]} 62. Kd4 {[%emt 0:00:11]} Kb6 {[%emt 0:00:33]} 63. Ke5 {[%emt 0:01:11]} Kxb5 {[%emt 0:00:23]} 64. Kf6 {[%emt 0:00:04]} Bf3 {[%emt 0:00:38]} 65. Kxg6 {[%emt 0:01:45]} Bg4 {[%emt 0:00:35]} 66. Bc1 {[%emt 0:00:16]} Kc4 {[%emt 0:00:33]} 67. Kf6 {[%emt 0:00:57]} Kd3 {[%emt 0:00:31]} 68. Ke5 {[%emt 0:00:19]} Bh3 {[%emt 0:00:38]} 69. Kd5 {[%emt 0:00:36]} Bg4 {[%emt 0:00:26]} 70. Ke5 {[%emt 0:00:16]} Bh3 {[%emt 0:00:00]} 71. Kd5 {[%emt 0:00:02]} Ke2 {[%emt 0:00:32]} 72. Ke5 {[%emt 0:00:46]} Kd1 {[%emt 0:00:49]} 73. Ba3 {[%emt 0:00:27]} c1=Q {[%emt 0:00:29]} 74. Bxc1 {[%emt 0:00:05]} Kxc1 {[%emt 0:00:02]} 75. e4 {[%emt 0:00:05]} fxe4 {[%emt 0:00:25]} 76. Kxe4 {[%emt 0:00:05]} Kd2 {[%emt 0:01:06]} 77. f5 {[%emt 0:00:42]} Kc3 {[%emt 0:00:37]} 78. Ke5 {[%emt 0:00:37]} Bf1 {[%emt 0:00:34]} 79. Kf6 {[%emt 0:02:11]} Bb5 {[%emt 0:00:17]} 80. Ke7 {[%emt 0:00:22]} Kd4 {[%emt 0:00:37]} 81. f6 {[%emt 0:00:17]} Bc4 {[%emt 0:00:16]} 82. f7 {[%emt 0:00:10]} Bxf7 {[%emt 0:00:05]} 83. Kxf7 {[%emt 0:00:06]} Ke5 {[%emt 0:00:24]} 84. Kg6 {[%emt 0:00:58]} Ke6 {[%emt 0:00:33]} 1/2-1/2

[Event "Djerba Festival Open-B 2025"]
[Site "Djerba"]
[Date "2025.02.18"]
[Round "3.6"]
[White "Dejardin, Gregoire"]
[Black "Zerarga, Imene"]
[Result "1-0"]
[Annotator "ChessBase"]
[ECO "A39"]
[WhiteElo "1932"]
[BlackElo "1831"]
[PlyCount "113"]
[EventDate "2025.02.15"]
[EventType "swiss"]
[EventCountry "TUN"]
[SourceTitle "playchess.com"]
[Source "ChessBase"]
[SourceQuality "1"]
[TimeControl "5400+30"]

1. Nf3 {[%emt 1:31:00]} c5 {[%emt 1:31:00]} 2. c4 {[%emt 0:00:30]} Nf6 {[%emt 0:00:30]} 3. g3 {[%emt 0:00:30]} Nc6 {[%emt 0:00:30]} 4. Bg2 {[%emt 0:00:30]} g6 {[%emt 0:00:30]} 5. Nc3 {[%emt 0:00:30]} Bg7 {[%emt 0:00:30]} 6. O-O {[%emt 0:00:30]} d6 {[%emt 0:00:30]} 7. d4 {[%emt 0:00:30]} cxd4 {[%emt 0:00:30]} 8. Nxd4 {[%emt 0:00:30]} Nxd4 {[%emt 0:00:30]} 9. Qxd4 {[%emt 0:00:30]} O-O {[%emt 0:00:30]} 10. Rd1 {[%emt 0:00:30]} Ng4 {[%emt 0:00:30]} 11. Qd2 {[%emt 0:00:30]} Qb6 {[%emt 0:00:30]} 12. e3 {[%emt 0:00:30]} Ne5 {[%emt 0:00:30]} 13. Nd5 {[%emt 0:00:30]} Qd8 14. Qe2 Bg4 {[%emt 0:01:00]} 15. f3 {[%emt 0:01:00]} Be6 {[%emt 0:00:30]} 16. Bd2 {[%emt 0:00:30]} b5 {[%emt 0:00:30]} 17. b3 {[%emt 0:00:30]} bxc4 {[%emt 0:00:30]} 18. Nf4 {[%emt 0:00:30]} cxb3 {[%emt 0:00:30]} 19. Nxe6 {[%emt 0:00:30]} fxe6 {[%emt 0:00:30]} 20. axb3 {[%emt 0:00:30]} Nd7 {[%emt 0:00:30]} 21. Ra3 {[%emt 0:00:30]} Qb8 {[%emt 0:00:30]} 22. Bh3 {[%emt 0:00:30]} Kf7 {[%emt 0:00:30]} 23. b4 {[%emt 0:00:30]} Rc8 {[%emt 0:00:30]} 24. f4 {[%emt 0:00:30]} Nf6 {[%emt 0:00:30]} 25. e4 {[%emt 0:00:30]} Qb6+ {[%emt 0:00:30]} 26. Kh1 {[%emt 0:00:30]} Rc2 {[%emt 0:00:30]} 27. e5 {[%emt 0:00:30]} Qb7+ {[%emt 0:00:30]} 28. Bg2 {[%emt 0:00:30]} Nd5 {[%emt 0:00:30]} 29. Qe4 {[%emt 0:00:30]} Rac8 {[%emt 0:00:30]} 30. Rd3 {[%emt 0:00:30]} Qb5 {[%emt 0:00:30]} 31. exd6 {[%emt 0:00:30]} exd6 {[%emt 0:00:30]} 32. Bh3 {[%emt 0:00:30]} Re8 {[%emt 0:00:30]} 33. Re1 {[%emt 0:00:30]} Kf8 {[%emt 0:00:30]} 34. Bxe6 {[%emt 0:00:30]} Nf6 {[%emt 0:00:30]} 35. Qd4 {[%emt 0:00:30]} d5 {[%emt 0:00:30]} 36. Bc3 {[%emt 0:00:30]} Nh5 {[%emt 0:00:30]} 37. Qe3 {[%emt 0:00:30]} Bxc3 {[%emt 0:00:30]} 38. Rxc3 {[%emt 0:00:30]} Rxe6 {[%emt 0:00:30]} 39. Qxe6 {[%emt 0:00:30]} Rxc3 {[%emt 0:00:30]} 40. Qd6+ {[%emt 0:00:30]} Kg8 {[%emt 0:00:30]} 41. Qd8+ {[%emt 0:00:30]} Kg7 {[%emt 0:00:30]} 42. Qe7+ {[%emt 0:00:30]} Kh6 {[%emt 0:00:30]} 43. Qg5+ {[%emt 0:00:30]} Kg7 {[%emt 0:00:30]} 44. Qe5+ {[%emt 0:00:30]} Kg8 {[%emt 0:00:30]} 45. Qxc3 {[%emt 0:00:30]} Qb7 {[%emt 0:00:30]} 46. Qd4 {[%emt 0:00:30]} Kf7 {[%emt 0:00:30]} 47. Qe5 {[%emt 0:00:30]} Ng7 {[%emt 0:00:30]} 48. Rc1 {[%emt 0:00:30]} Ne6 {[%emt 0:00:30]} 49. f5 {[%emt 0:00:30]} gxf5 {[%emt 0:00:30]} 50. Qxf5+ {[%emt 0:00:30]} Kg7 {[%emt 0:00:30]} 51. Qxe6 {[%emt 0:00:30]} d4+ {[%emt 0:00:30]} 52. Kg1 {[%emt 0:00:30]} d3 {[%emt 0:00:30]} 53. Qe5+ {[%emt 0:00:30]} Kg8 {[%emt 0:00:30]} 54. Rc7 {[%emt 0:00:30]} Qb6+ {[%emt 0:00:30]} 55. Kf1 {[%emt 0:00:30]} Qg6 {[%emt 0:00:30]} 56. Qd5+ {[%emt 0:00:30]} Kf8 {[%emt 0:00:30]} 57. Qa8+ {[%emt 0:00:30]} 1-0

[Event "Djerba Festival Open-B 2025"]
[Site "Djerba"]
[Date "2025.02.18"]
[Round "3.7"]
[White "Ertemi, Ibrahim K"]
[Black "Gely, Bernard"]
[Result "1/2-1/2"]
[Annotator "NA"]
[ECO "B50"]
[WhiteElo "1823"]
[BlackElo "1928"]
[PlyCount "56"]
[EventDate "2025.02.15"]
[EventType "swiss"]
[EventCountry "TUN"]
[SourceTitle "playchess.com"]
[Source "ChessBase"]
[SourceQuality "1"]
[TimeControl "5400+30"]

1. e4 {[%emt 0:02:23]} c5 {[%emt 0:00:03]} 2. Nf3 {[%emt 0:00:30]} d6 {[%emt 0:00:15]} 3. Nc3 {[%emt 0:01:07]} a6 {[%emt 0:00:20]} 4. Nd5 {[%emt 0:03:20]} e6 {[%emt 0:00:22]} 5. Ne3 {[%emt 0:00:39]} Nc6 {[%emt 0:00:07]} 6. c3 {[%emt 0:00:35]} Nf6 {[%emt 0:00:30]} 7. Bd3 {[%emt 0:00:57]} b5 {[%emt 0:01:21]} 8. Bc2 {[%emt 0:01:02]} Bb7 {[%emt 0:03:29]} 9. d3 {[%emt 0:01:08]} Be7 {[%emt 0:00:32]} 10. O-O {[%emt 0:00:31]} O-O {[%emt 0:00:01]} 11. a3 {[%emt 0:03:11]} Qc7 {[%emt 0:00:16]} 12. h3 {[%emt 0:06:35]} Rfd8 {[%emt 0:00:02]} 13. Qe2 {[%emt 0:09:37]} d5 {[%emt 0:00:52]} 14. exd5 {[%emt 0:04:36]} Nxd5 {[%emt 0:00:20]} 15. Nxd5 {[%emt 0:02:51]} Rxd5 {[%emt 0:00:04]} 16. Be3 {[%emt 0:08:04]} Rad8 {[%emt 0:04:17]} 17. Rad1 {[%emt 0:01:00]} Ne5 {[%emt 0:01:36]} 18. Nxe5 {[%emt 0:03:21]} Qxe5 {[%emt 0:00:36]} 19. f4 {[%emt 0:02:51]} Qc7 {[%emt 0:01:49]} 20. d4 {[%emt 0:01:03]} c4 {[%emt 0:00:30]} 21. Be4 {[%emt 0:01:30]} R5d7 {[%emt 0:00:01]} 22. Qf3 {[%emt 0:00:39]} Bxe4 {[%emt 0:00:09]} 23. Qxe4 {[%emt 0:00:18]} Qb7 {[%emt 0:00:02]} 24. Qxb7 {[%emt 0:01:29]} Rxb7 {[%emt 0:00:01]} 25. f5 {[%emt 0:00:49]} exf5 {[%emt 0:00:35]} 26. Rxf5 {[%emt 0:00:14]} Bd6 {[%emt 0:00:59]} 27. Rf3 {[%emt 0:02:06]} Re8 {[%emt 0:00:38]} 28. Kf2 {[%emt 0:01:21]} a5 {[%emt 0:02:35]} 1/2-1/2

[Event "Djerba Festival Open-B 2025"]
[Site "Djerba"]
[Date "2025.02.18"]
[Round "3.8"]
[White "Zouaghi, Ahmed"]
[Black "Girard, Adrien"]
[Result "1-0"]
[Annotator "NA"]
[ECO "B13"]
[WhiteElo "1919"]
[BlackElo "1796"]
[PlyCount "107"]
[EventDate "2025.02.15"]
[EventType "swiss"]
[EventCountry "TUN"]
[SourceTitle "playchess.com"]
[Source "ChessBase"]
[SourceQuality "1"]
[TimeControl "5400+30"]

1. e4 {[%emt 0:00:01]} c6 {[%emt 0:00:05]} 2. d4 {[%emt 0:00:05]} d5 {[%emt 0:00:05]} 3. exd5 {[%emt 0:00:05]} cxd5 {[%emt 0:00:10]} 4. Bd3 {[%emt 0:00:07]} Nc6 {[%emt 0:00:11]} 5. c3 {[%emt 0:00:05]} Nf6 {[%emt 0:00:09]} 6. Bf4 {[%emt 0:00:34]} Bg4 {[%emt 0:00:28]} 7. Qb3 {[%emt 0:00:07]} Qd7 {[%emt 0:01:57]} 8. Nd2 {[%emt 0:00:24]} e6 {[%emt 0:00:33]} 9. Ngf3 {[%emt 0:00:21]} Bxf3 {[%emt 0:00:32]} 10. Nxf3 {[%emt 0:00:12]} Be7 {[%emt 0:02:16]} 11. Ne5 {[%emt 0:06:51]} Qc8 {[%emt 0:00:11]} 12. h3 {[%emt 0:05:47]} O-O {[%emt 0:02:16]} 13. O-O {[%emt 0:03:23]} Nxe5 {[%emt 0:05:03]} 14. Bxe5 {[%emt 0:00:54]} a6 {[%emt 0:01:50]} 15. Qc2 {[%emt 0:04:46]} h6 {[%emt 0:00:55]} 16. a4 {[%emt 0:01:44]} Nd7 {[%emt 0:02:42]} 17. Bf4 {[%emt 0:03:20]} Nb6 {[%emt 0:04:52]} 18. Qe2 {[%emt 0:02:25]} Qd8 {[%emt 0:05:19]} 19. a5 {[%emt 0:13:05]} Nc8 {[%emt 0:01:55]} 20. Bc2 {[%emt 0:01:47]} Bg5 {[%emt 0:01:58]} 21. Qd3 {[%emt 0:00:51]} g6 {[%emt 0:02:07]} 22. Bh2 {[%emt 0:09:20]} Nd6 {[%emt 0:00:40]} 23. Bxd6 {[%emt 0:05:06]} Qxd6 {[%emt 0:00:09]} 24. g3 {[%emt 0:01:05]} h5 {[%emt 0:01:21]} 25. h4 {[%emt 0:01:18]} Bh6 {[%emt 0:01:09]} 26. Rfe1 {[%emt 0:02:05]} Kh8 {[%emt 0:05:50]} 27. Re5 {[%emt 0:02:08]} Rg8 {[%emt 0:02:07]} 28. Rxh5 {[%emt 0:01:14]} Kg7 {[%emt 0:00:32]} 29. Re5 {[%emt 0:00:43]} Kf8 {[%emt 0:01:20]} 30. Rae1 {[%emt 0:05:43]} Qc7 {[%emt 0:01:20]} 31. Qf3 {[%emt 0:01:06]} Kg7 {[%emt 0:06:05]} 32. Ra1 {[%emt 0:04:40]} Rae8 {[%emt 0:00:31]} 33. Qg4 {[%emt 0:01:01]} f5 {[%emt 0:50:22]} 34. Qe2 {[%emt 0:00:18]} Kf7 {[%emt 0:00:00]} 35. Re1 {[%emt 0:02:42]} Qc6 {[%emt 0:00:00]} 36. Qd1 {[%emt 0:00:57]} Qc7 {[%emt 0:00:00]} 37. Ba4 {[%emt 0:03:12]} Re7 {[%emt 0:00:00]} 38. Qe2 {[%emt 0:00:39]} Qd6 {[%emt 0:00:00]} 39. f4 {[%emt 0:03:18]} Bg7 {[%emt 0:00:00]} 40. Re3 {[%emt 0:00:04]} Rh8 {[%emt 0:00:00]} 41. Qf3 {[%emt 0:01:05]} Kf6 {[%emt 0:00:00]} 42. Bb3 {[%emt 0:00:41]} Rhe8 {[%emt 0:00:00]} 43. Qe2 {[%emt 0:03:23]} Bf8 {[%emt 0:00:00]} 44. h5 {[%emt 0:02:00]} b5 {[%emt 0:00:00]} 45. hxg6 {[%emt 0:02:13]} Kxg6 {[%emt 0:00:00]} 46. Bc2 {[%emt 0:00:38]} Kf6 {[%emt 0:00:00]} 47. Qh5 {[%emt 0:00:55]} Bg7 {[%emt 0:00:00]} 48. Re5 {[%emt 0:01:06]} Bh8 {[%emt 0:00:00]} 49. g4 {[%emt 0:04:56]} Rg8 {[%emt 0:00:00]} 50. g5+ {[%emt 0:00:41]} Kg7 {[%emt 0:00:00]} 51. Bxf5 {[%emt 0:01:15]} Kf8 {[%emt 0:00:00]} 52. Rxe6 {[%emt 0:01:26]} Rxe6 {[%emt 0:00:00]} 53. Rxe6 {[%emt 0:00:14]} Qxf4 {[%emt 0:00:00]} 54. Re8+ {[%emt 0:00:34]} 1-0

[Event "Djerba Festival Open-B 2025"]
[Site "Djerba"]
[Date "2025.02.18"]
[Round "3.9"]
[White "Smida, Tahar"]
[Black "Charfeddine, Akram"]
[Result "0-1"]
[Annotator "ChessBase"]
[ECO "B84"]
[WhiteElo "1769"]
[BlackElo "1915"]
[PlyCount "108"]
[EventDate "2025.02.15"]
[EventType "swiss"]
[EventCountry "TUN"]
[SourceTitle "playchess.com"]
[Source "ChessBase"]
[SourceQuality "1"]
[TimeControl "5400+30"]

1. e4 {[%emt 1:31:00]} c5 {[%emt 1:31:00]} 2. Nf3 {[%emt 0:00:30]} d6 {[%emt 0:00:30]} 3. d4 {[%emt 0:00:30]} cxd4 {[%emt 0:00:30]} 4. Nxd4 {[%emt 0:00:30]} Nf6 {[%emt 0:00:30]} 5. Nc3 {[%emt 0:00:30]} a6 {[%emt 0:00:30]} 6. Be2 {[%emt 0:00:30]} e6 {[%emt 0:00:30]} 7. O-O {[%emt 0:00:30]} Nbd7 {[%emt 0:00:30]} 8. f4 {[%emt 0:00:30]} b5 {[%emt 0:00:30]} 9. a3 {[%emt 0:00:30]} Bb7 {[%emt 0:00:30]} 10. Bf3 {[%emt 0:00:30]} Be7 {[%emt 0:00:30]} 11. Be3 {[%emt 0:00:30]} Rc8 {[%emt 0:00:30]} 12. Qd2 {[%emt 0:00:30]} Qc7 {[%emt 0:00:30]} 13. Nb3 {[%emt 0:00:30]} O-O {[%emt 0:00:30]} 14. Rac1 {[%emt 0:00:30]} Nb6 {[%emt 0:00:30]} 15. Na5 {[%emt 0:00:30]} Ba8 {[%emt 0:00:30]} 16. Qf2 {[%emt 0:00:30]} Na4 {[%emt 0:00:30]} 17. Nxa4 {[%emt 0:00:30]} Qxa5 {[%emt 0:00:30]} 18. Nb6 {[%emt 0:00:30]} Bxe4 {[%emt 0:00:30]} 19. Bd2 {[%emt 0:00:30]} b4 {[%emt 0:00:30]} 20. Bxb4 {[%emt 0:00:30]} Qf5 {[%emt 0:00:30]} 21. Nxc8 {[%emt 0:00:30]} Rxc8 {[%emt 0:00:30]} 22. g3 {[%emt 0:00:30]} a5 {[%emt 0:00:30]} 23. Bc3 {[%emt 0:00:30]} Bxf3 {[%emt 0:00:30]} 24. Qxf3 {[%emt 0:00:30]} Ne4 {[%emt 0:00:30]} 25. Bxa5 {[%emt 0:00:30]} h5 {[%emt 0:00:30]} 26. Bb4 {[%emt 0:00:30]} Bf6 {[%emt 0:00:30]} 27. Rce1 {[%emt 0:00:30]} d5 {[%emt 0:00:30]} 28. Qd3 {[%emt 0:00:30]} Bxb2 {[%emt 0:00:30]} 29. c3 {[%emt 0:00:30]} Rc4 {[%emt 0:00:30]} 30. Rxe4 {[%emt 0:00:30]} Qxe4 {[%emt 0:00:30]} 31. Qxe4 {[%emt 0:00:30]} dxe4 {[%emt 0:00:30]} 32. a4 {[%emt 0:00:30]} Bxc3 {[%emt 0:00:30]} 33. Bxc3 {[%emt 0:00:30]} Rxc3 {[%emt 0:00:30]} 34. Ra1 {[%emt 0:00:30]} Rc6 {[%emt 0:00:30]} 35. a5 {[%emt 0:00:30]} Ra6 {[%emt 0:00:30]} 36. Kf2 {[%emt 0:00:30]} Kf8 {[%emt 0:00:30]} 37. Ke3 {[%emt 0:00:30]} f5 {[%emt 0:00:30]} 38. h3 {[%emt 0:00:30]} Ke7 {[%emt 0:00:30]} 39. g4 {[%emt 0:00:30]} hxg4 {[%emt 0:00:30]} 40. hxg4 {[%emt 0:00:30]} Kd6 {[%emt 0:00:30]} 41. Kd4 {[%emt 0:00:30]} Kc6 {[%emt 0:00:30]} 42. gxf5 {[%emt 0:00:30]} exf5 {[%emt 0:00:30]} 43. Ke3 {[%emt 0:00:30]} Kb5 {[%emt 0:00:30]} 44. Rg1 {[%emt 0:00:30]} g6 {[%emt 0:00:30]} 45. Rd1 {[%emt 0:00:30]} Kxa5 {[%emt 0:00:30]} 46. Rb1 {[%emt 0:00:30]} Rd6 {[%emt 0:00:30]} 47. Rg1 {[%emt 0:00:30]} Kb6 {[%emt 0:00:30]} 48. Rg2 {[%emt 0:00:30]} Kc7 {[%emt 0:00:30]} 49. Rf2 {[%emt 0:00:30]} Kd7 {[%emt 0:00:30]} 50. Ke2 {[%emt 0:00:30]} Ke7 {[%emt 0:00:30]} 51. Kf1 {[%emt 0:00:30]} Kf6 {[%emt 0:00:30]} 52. Kg2 {[%emt 0:00:30]} Rd3 {[%emt 0:00:30]} 53. Rf1 {[%emt 0:00:30]} g5 {[%emt 0:00:30]} 54. fxg5+ {[%emt 0:00:30]} Kxg5 {[%emt 0:00:30]} 0-1

[Event "Djerba Festival Open-B 2025"]
[Site "Djerba"]
[Date "2025.02.18"]
[Round "3.10"]
[White "Algadari, Mahmod"]
[Black "Banat, Rizlene"]
[Result "1-0"]
[Annotator "ChessBase"]
[ECO "A43"]
[WhiteElo "1909"]
[BlackElo "1785"]
[PlyCount "77"]
[EventDate "2025.02.15"]
[EventType "swiss"]
[EventCountry "TUN"]
[SourceTitle "playchess.com"]
[Source "ChessBase"]
[SourceQuality "1"]
[TimeControl "5400+30"]

1. d4 {[%emt 1:31:00]} c5 {[%emt 0:01:32]} 2. c3 {[%emt 0:00:00]} e6 {[%emt 0:01:31]} 3. Bf4 {[%emt 0:00:00]} d5 {[%emt 0:02:11]} 4. e3 {[%emt 0:00:00]} c4 {[%emt 0:03:52]} 5. e4 {[%emt 0:00:00]} b5 {[%emt 0:06:12]} 6. exd5 {[%emt 0:00:00]} Qxd5 {[%emt 0:01:32]} 7. Be2 {[%emt 0:00:00]} Bb7 {[%emt 0:03:51]} 8. Bf3 {[%emt 0:00:00]} Qd7 {[%emt 0:00:27]} 9. a4 {[%emt 0:00:00]} Nf6 {[%emt 0:11:13]} 10. axb5 {[%emt 0:00:00]} Qxb5 {[%emt 0:00:48]} 11. Qa4 {[%emt 0:00:00]} Qxa4 {[%emt 0:00:43]} 12. Rxa4 {[%emt 0:00:00]} Bxf3 {[%emt 0:01:14]} 13. Nxf3 {[%emt 0:00:00]} Nbd7 {[%emt 0:01:45]} 14. Rxc4 {[%emt 0:00:00]} Nb6 {[%emt 0:00:56]} 15. Rc6 {[%emt 0:00:00]} Nfd5 {[%emt 0:03:16]} 16. Bg3 {[%emt 0:00:00]} Ne7 {[%emt 0:06:02]} 17. Rc5 {[%emt 0:00:00]} Nf5 {[%emt 0:01:22]} 18. Rb5 {[%emt 0:00:00]} Nxg3 {[%emt 0:00:28]} 19. hxg3 {[%emt 0:00:00]} Bd6 {[%emt 0:02:08]} 20. Nbd2 {[%emt 0:00:00]} O-O {[%emt 0:01:51]} 21. c4 {[%emt 0:00:00]} Be7 {[%emt 0:01:16]} 22. Ke2 {[%emt 0:00:00]} f6 {[%emt 0:12:07]} 23. Ra1 {[%emt 0:00:00]} Rfc8 {[%emt 0:01:52]} 24. b3 {[%emt 0:00:00]} Rc6 {[%emt 0:01:54]} 25. Rba5 {[%emt 0:00:00]} Nc8 {[%emt 0:03:16]} 26. Ra6 {[%emt 0:01:20]} Rxa6 {[%emt 0:01:48]} 27. Rxa6 {[%emt 0:00:01]} Kf7 {[%emt 0:00:17]} 28. c5 {[%emt 0:00:02]} Bd8 {[%emt 0:03:33]} 29. Nc4 {[%emt 0:02:15]} Be7 {[%emt 0:04:27]} 30. Kd3 {[%emt 0:01:04]} Rb8 {[%emt 0:00:33]} 31. Kc3 {[%emt 0:01:25]} Rb5 {[%emt 0:01:01]} 32. b4 {[%emt 0:00:25]} Rb7 {[%emt 0:02:03]} 33. Nfd2 {[%emt 0:01:28]} Bd8 {[%emt 0:04:10]} 34. Ne4 {[%emt 0:00:55]} Be7 {[%emt 0:00:20]} 35. Na5 {[%emt 0:00:36]} Rc7 {[%emt 0:00:24]} 36. Nc6 {[%emt 0:00:34]} Bf8 {[%emt 0:00:41]} 37. Nd2 {[%emt 0:01:02]} Be7 {[%emt 0:03:15]} 38. Nc4 {[%emt 0:00:02]} Bf8 {[%emt 0:00:26]} 39. Nd8+ {[%emt 0:00:31]} 1-0

[Event "Djerba Festival Open-B 2025"]
[Site "Djerba"]
[Date "2025.02.18"]
[Round "3.11"]
[White "Weslati, Monem"]
[Black "Rafik yassine"]
[Result "0-1"]
[Annotator "NA"]
[ECO "A96"]
[WhiteElo "1591"]
[BlackElo "1909"]
[PlyCount "61"]
[EventDate "2025.02.15"]
[EventType "swiss"]
[EventCountry "TUN"]
[SourceTitle "playchess.com"]
[Source "ChessBase"]
[SourceQuality "1"]
[TimeControl "5400+30"]

1. d4 {[%emt 0:00:03]} e6 {[%emt 0:00:10]} 2. c4 {[%emt 0:00:12]} f5 {[%emt 0:00:07]} 3. Nf3 {[%emt 0:00:38]} Nf6 {[%emt 0:00:09]} 4. g3 {[%emt 0:00:43]} Be7 {[%emt 0:00:10]} 5. Bg2 {[%emt 0:00:17]} O-O {[%emt 0:00:17]} 6. Nc3 {[%emt 0:00:33]} d6 {[%emt 0:00:08]} 7. O-O {[%emt 0:00:18]} Ne4 {[%emt 0:00:28]} 8. Ne1 {[%emt 0:01:41]} Nxc3 {[%emt 0:00:42]} 9. bxc3 {[%emt 0:00:25]} Nc6 {[%emt 0:01:48]} 10. Nd3 {[%emt 0:01:02]} Bf6 {[%emt 0:01:26]} 11. Rb1 {[%emt 0:01:47]} Qe8 {[%emt 0:02:03]} 12. e4 {[%emt 0:02:01]} e5 {[%emt 0:10:09]} 13. exf5 {[%emt 0:02:02]} exd4 {[%emt 0:01:32]} 14. Re1 {[%emt 0:00:33]} Qd8 {[%emt 0:01:03]} 15. Nf4 {[%emt 0:02:28]} Bxf5 {[%emt 0:09:01]} 16. Rxb7 {[%emt 0:01:28]} Bd7 {[%emt 0:04:10]} 17. Bd5+ {[%emt 0:02:01]} Kh8 {[%emt 0:04:23]} 18. Bxc6 {[%emt 0:14:42]} Bxc6 {[%emt 0:02:48]} 19. Ne6 {[%emt 0:00:15]} Qc8 {[%emt 0:10:21]} 20. Rxc7 {[%emt 0:09:59]} Qa6 {[%emt 0:00:06]} 21. cxd4 {[%emt 0:15:10]} Rfe8 {[%emt 0:02:13]} 22. d5 {[%emt 0:05:19]} Ba4 {[%emt 0:00:20]} 23. Qg4 {[%emt 0:02:43]} Qa5 {[%emt 0:01:15]} 24. Bd2 {[%emt 0:14:21]} Qxd2 {[%emt 0:01:34]} 25. Re3 {[%emt 0:09:36]} Bd1 {[%emt 0:02:09]} 26. Qf4 {[%emt 0:05:27]} Be2 {[%emt 0:02:00]} 27. Rxe2 {[%emt 0:04:03]} Qxe2 {[%emt 0:00:18]} 28. Rf7 {[%emt 0:00:04]} Rxe6 {[%emt 0:02:43]} 29. dxe6 {[%emt 0:01:54]} Qxe6 {[%emt 0:00:13]} 30. Rb7 {[%emt 0:02:54]} h6 {[%emt 0:02:58]} 31. Rb5 {[%emt 0:01:21]} 0-1